bitfinex/quotes_ETHUSD_20250414
["timestamp","ask_amount","ask_price","bid_price","bid_amount"]
[1744635672423,6.76122,1675.8,1675.4,5.96855]
[1744635672602,6.76122,1675.8,1675.5,5.96831]
[1744635672791,12.72872,1675.8,1675.4,12.01021]
[1744635672990,12.72872,1675.8,1675.4,6.04165]
[1744635673194,12.72872,1675.8,1675.4,13.21725668]
[1744635673507,6.76122,1675.8,1675.4,7.24868668]
[1744635673692,5.96766,1675.7,1675.4,7.24868668]
[1744635673888,5.96766,1675.7,1675.4,13.21727668]
[1744635674088,0.7781,1676.0,1675.7,5.96753]
[1744635674293,6.74474,1676.0,1675.7,5.96753]
[1744635674493,12.71151,1676.0,1675.6,11.93602]
[1744635674787,12.71151,1676.0,1675.4,7.24884668]
[1744635674788,5.96754,1675.8,1675.5,5.96831]
[1744635674992,11.93406,1675.9,1675.5,5.96825]
[1744635675187,5.96694,1675.9,1675.6,5.968]
[1744635675622,11.9341,1675.9,1675.5,5.96825]
[1744635675825,0.7959,1675.7,1675.4,13.14445668]
[1744635676194,6.76361,1675.7,1675.4,7.17574668]
[1744635676492,5.96815,1675.6,1675.3,5.96895]
[1744635676697,11.9364,1675.6,1675.3,5.96895]
[1744635676920,5.96815,1675.6,1675.3,5.96895]
[1744635677226,11.93636,1675.6,1675.3,5.96895]
[1744635677523,5.96815,1675.6,1675.3,5.96895]
[1744635677703,5.96815,1675.6,1675.3,13.131732]
[1744635677918,5.96815,1675.6,1675.3,7.162782]
[1744635678438,6.76361,1675.7,1675.4,5.9687]
[1744635678603,12.73147,1675.7,1675.4,5.9687]
[1744635678942,12.73147,1675.7,1675.3,13.131832]
[1744635678943,5.96811,1675.6,1675.3,13.131832]
[1744635679140,0.7959,1675.7,1675.4,5.96864]
[1744635679305,6.79215,1675.9,1675.6,5.9679]
[1744635679630,6.79215,1675.9,1675.6,5.96789]
[1744635679804,12.75926,1675.9,1675.5,11.93652]
[1744635680003,6.79215,1675.9,1675.6,5.96794]
[1744635680612,12.75937,1675.9,1675.6,5.96794]
[1744635681414,6.79215,1675.9,1675.6,5.96794]
[1744635681937,5.96731,1675.8,1675.5,11.93652]
[1744635682112,5.96731,1675.8,1675.5,13.130172]
[1744635682313,5.96731,1675.8,1675.5,13.130142]
[1744635682837,6.79215,1675.9,1675.6,5.96777]
[1744635683133,12.75942,1675.9,1675.5,13.130212]
[1744635683732,6.79215,1675.9,1675.6,5.96793]
[1744635683925,12.75928,1675.9,1675.6,5.96793]
[1744635684113,6.79215,1675.9,1675.6,5.96793]
[1744635684632,0.8252,1675.9,1675.7,11.93504]
[1744635684813,0.8252,1675.9,1675.7,5.96752]
[1744635685010,6.921,1676.1,1675.9,5.96661]
[1744635685218,6.16,1676.1,1676.0,5.96658]
[1744635685517,0.761,1676.2,1676.0,5.96658]
[1744635685718,0.761,1676.2,1676.0,11.93304]
[1744635685922,0.761,1676.2,1676.0,7.159779]
[1744635686722,0.8234,1676.4,1676.0,1.193319]
[1744635686922,0.8234,1676.4,1675.8,4.12025005]
[1744635686923,0.8234,1676.4,1676.2,5.96572]
[1744635687124,0.8234,1676.4,1676.3,5.96551]
[1744635687604,0.8234,1676.4,1676.2,5.96572]
[1744635687946,0.8234,1676.4,1676.1,11.9323]
[1744635688310,0.8234,1676.4,1676.2,5.96564]
[1744635688512,0.8234,1676.4,1676.2,6.562204]
[1744635688736,0.8234,1676.4,1676.2,6.562394]
[1744635689057,0.8234,1676.4,1676.2,0.596564]
[1744635689341,0.8234,1676.4,1676.2,6.562314]
[1744635690545,0.8234,1676.4,1676.2,7.562314]
[1744635691306,0.8234,1676.4,1676.2,1.596564]
[1744635692046,12.75408,1676.4,1676.2,1.0]
[1744635692241,7.34451,1676.3,1676.2,1.0]
[1744635693044,1.379,1676.3,1676.2,1.0]
[1744635694543,0.55,1676.3,1676.2,1.0]
[1744635698821,0.7981,1676.4,1676.2,6.96551]
[1744635699227,0.7981,1676.4,1676.2,7.6680267]
[1744635699729,0.7981,1676.4,1676.2,13.6337667]
[1744635699925,0.7981,1676.4,1676.2,1.7025167]
[1744635700251,12.72901,1676.4,1676.2,1.0]
[1744635700655,5.96551,1676.3,1676.2,1.0]
[1744635702054,7.28471,1676.3,1676.2,1.0]
[1744635707126,11.33317772,1676.3,1676.2,1.0]
[1744635707454,13.65956949,1676.3,1676.2,1.0]
[1744635707653,16.65956949,1676.3,1676.2,1.0]
[1744635707859,0.7874,1675.8,1675.4,0.0731]
[1744635708061,5.96802,1675.6,1675.4,0.0731]
[1744635708361,11.93559,1675.7,1675.3,6.04207]
[1744635708655,11.93559,1675.7,1675.4,5.96871]
[1744635709231,5.9677,1675.7,1675.4,5.96871]
[1744635709461,11.93552,1675.7,1675.4,5.96871]
[1744635709963,5.9677,1675.7,1675.4,5.96871]
[1744635710327,5.9677,1675.7,1675.4,5.96862]
[1744635710530,12.0714,1675.8,1675.4,7.2301117]
[1744635710731,6.104,1675.8,1675.7,6.04075]
[1744635710930,0.7642,1676.0,1675.7,6.04075]
[1744635710931,0.7642,1676.0,1675.7,12.0084]
[1744635711130,0.55,1676.0,1675.7,12.0084]
[1744635711332,12.274,1676.1,1675.8,5.96703]
[1744635711663,12.07035,1676.1,1675.8,5.96703]
[1744635711852,12.07035,1676.1,1675.8,11.93422]
[1744635712365,6.104,1676.1,1675.9,5.96687]
[1744635712830,6.104,1676.1,1676.0,5.96658]
[1744635713031,6.8845,1676.4,1676.1,5.96608]
[1744635713263,6.104,1676.4,1676.1,5.96608]
[1744635713589,6.104,1676.4,1676.2,5.9657]
[1744635713878,6.104,1676.4,1676.3,0.0731]
[1744635714027,6.104,1676.4,1676.2,6.0388]
[1744635715031,6.104,1676.4,1676.2,12.00453]
[1744635715234,6.104,1676.4,1676.2,6.0388]
[1744635715439,6.104,1676.4,1676.3,5.96551]
[1744635716372,6.104,1676.4,1676.2,12.00452]
[1744635716835,13.45738,1676.6,1676.3,5.96551]
[1744635717042,6.104,1676.7,1676.5,5.9648]
[1744635717274,0.8031,1676.8,1676.5,5.9648]
[1744635717275,18.98838,1677.0,1676.7,5.96409]
[1744635717447,12.06708,1677.0,1676.7,5.96409]
[1744635718183,12.06708,1677.0,1676.6,5.96442]
[1744635718184,6.104,1677.0,1676.6,5.96442]
[1744635718355,6.104,1677.0,1676.9,5.96338]
[1744635718672,19.06355,1677.3,1676.8,0.0731]
[1744635718846,19.06369,1677.3,1676.9,5.96338]
[1744635719047,5.96234,1677.2,1676.9,5.96338]
[1744635719253,11.92493,1677.2,1676.8,12.00042]
[1744635719464,5.9627,1677.1,1676.8,6.03676]
[1744635719975,11.92498,1677.2,1676.8,12.00038]
[1744635720275,5.96234,1677.2,1676.9,5.96336]
[1744635720845,19.06353,1677.3,1676.9,5.96327]
[1744635721187,24.2172,1677.3,1677.0,5.96295]
[1744635721367,6.123,1677.3,1677.1,6.03548]
[1744635721582,6.123,1677.3,1677.2,5.96231]
[1744635722084,6.123,1677.3,1677.1,11.99801]
[1744635722286,6.123,1677.3,1677.1,11.99799]
[1744635723478,6.123,1677.3,1677.2,5.96231]
[1744635724479,0.02,1677.3,1677.2,11.34327549]
[1744635724680,6.6166418,1678.4,1677.4,0.0731]
[1744635724894,0.4466418,1678.4,1678.0,6.03246]
[1744635725182,0.4466418,1678.4,1678.3,5.95841]
[1744635725344,0.4466418,1678.4,1678.1,0.603246]
[1744635725345,0.4466418,1678.4,1678.1,6.562216]
[1744635725550,0.4466418,1678.4,1678.1,5.95895]
[1744635725751,5.95853,1678.3,1677.9,5.95965]
[1744635726052,7.1888118,1678.4,1677.9,5.95963]
[1744635726252,1.2307418,1678.4,1678.2,5.95849]
[1744635726452,5.95862,1678.3,1677.9,5.95969]
[1744635726648,5.95862,1678.3,1677.9,6.96781577]
[1744635726881,0.4466418,1678.4,1678.3,5.95841]
[1744635727553,0.4466418,1678.4,1678.1,11.91803]
[1744635727756,0.4466418,1678.4,1678.2,11.91736]
[1744635727977,0.4466418,1678.4,1678.3,5.95841]
[1744635728177,0.4466418,1678.4,1678.2,5.95872]
[1744635728551,0.4466418,1678.4,1678.2,7.20992744]
[1744635728849,0.4466418,1678.4,1678.3,5.95841]
[1744635729062,0.4466418,1678.4,1678.2,13.108937]
[1744635729458,0.4466418,1678.4,1678.2,1.191777]
[1744635729665,0.4466418,1678.4,1678.1,5.95905]
[1744635729878,0.4466418,1678.4,1678.3,5.95841]
[1744635730080,0.4466418,1678.4,1678.1,5.959]
[1744635730259,0.4466418,1678.4,1678.3,5.95841]
[1744635730883,0.4466418,1678.4,1678.2,11.91719]
[1744635731182,0.4466418,1678.4,1678.3,7.150129]
[1744635731948,0.4466418,1678.4,1678.3,7.223229]
[1744635732154,0.4466418,1678.4,1678.3,10.223229]
[1744635732355,0.05,1679.4,1679.1,5.95535]
[1744635732659,0.7522,1679.3,1678.7,0.0731]
[1744635732859,5.95593,1679.0,1678.7,0.0731]
[1744635733052,6.225,1679.2,1678.5,0.0731]
[1744635733258,6.225,1679.2,1678.5,6.03073]
[1744635733259,5.95663,1678.8,1678.5,6.03073]
[1744635733463,6.77553,1678.8,1678.5,1.198873]
[1744635733663,6.77553,1678.8,1678.1,5.959]
[1744635733664,5.95821,1678.4,1678.1,5.959]
[1744635733878,5.95891,1678.2,1677.9,1.00812577]
[1744635734064,6.224,1678.3,1677.9,1.00812577]
[1744635734292,5.95878,1678.2,1677.9,1.00812577]
[1744635734597,6.224,1678.3,1677.9,1.00812577]
[1744635734806,6.224,1678.3,1677.9,5.9597]
[1744635735102,6.224,1678.3,1678.0,5.95944]
[1744635735453,6.224,1678.3,1678.1,5.95911]
[1744635735689,6.224,1678.3,1678.0,5.95938]
[1744635735962,5.95877,1678.2,1677.8,6.0332]
[1744635736174,5.95877,1678.2,1677.9,0.60332]
[1744635736706,6.224,1678.3,1677.9,5.95974]
[1744635736990,12.18258,1678.3,1677.9,5.95974]
[1744635737189,18.14129,1678.3,1677.9,5.95974]
[1744635737690,5.95883,1678.2,1677.9,5.95979]
[1744635737857,12.18258,1678.3,1677.9,5.95962]
[1744635738179,0.55,1678.6,1678.2,0.0731]
[1744635738180,5.95737,1678.6,1678.2,0.0731]
[1744635738379,5.95637,1678.9,1678.2,0.0731]
[1744635738581,6.9881,1679.1,1678.3,5.95826]
[1744635738762,11.91364,1678.8,1678.4,6.01736023]
[1744635738962,5.95677,1678.8,1678.5,0.60173602]
[1744635739288,5.95629,1678.9,1678.5,0.60173602]
[1744635739289,5.95629,1678.9,1678.6,0.05957185]
[1744635739492,5.95612,1679.0,1678.6,6.03039]
[1744635739691,5.95699,1678.7,1678.6,0.0731]
[1744635739870,5.95699,1678.7,1678.4,0.0731]
[1744635740190,5.9577,1678.5,1678.2,0.0731]
[1744635740491,5.95806,1678.4,1678.2,0.0731]
[1744635740857,5.95863,1678.3,1678.0,3.595962]
[1744635741078,5.95863,1678.3,1677.7,0.0731]
[1744635741079,0.55,1678.2,1677.7,0.0731]
[1744635741258,5.95946,1678.1,1677.7,0.0731]
[1744635741464,11.91889,1678.1,1677.7,6.03359]
[1744635741680,0.55,1678.2,1677.7,0.0731]
[1744635741681,5.95986,1677.9,1677.7,0.0731]
[1744635741876,5.96018,1677.8,1677.7,0.603397]
[1744635742079,12.18285,1677.9,1677.5,5.96113]
[1744635742292,6.223,1677.9,1677.5,5.96124]
[1744635742470,6.223,1677.9,1677.7,5.96042]
[1744635742674,6.223,1677.9,1677.7,5.96037]
[1744635742872,6.223,1677.9,1677.7,1.192121]
[1744635743272,6.223,1677.9,1677.7,7.152651]
[1744635743604,6.223,1677.9,1677.7,1.192121]
[1744635743780,5.96018,1677.8,1677.5,5.96119]
[1744635743958,5.96031,1677.8,1677.4,6.03469]
[1744635744162,5.96065,1677.7,1677.4,11.99608]
[1744635744362,5.96024,1677.8,1677.4,11.99601]
[1744635744797,5.96024,1677.8,1677.5,5.96124]
[1744635744966,5.96024,1677.8,1677.6,0.596124]
[1744635745871,5.96024,1677.8,1677.4,11.99618]
[1744635745872,5.96024,1677.8,1677.5,5.9612]
[1744635746268,12.95968,1677.9,1677.5,11.92227]
[1744635746492,12.95968,1677.9,1677.4,0.0731]
[1744635746493,6.223,1677.9,1677.4,0.0731]
[1744635746673,6.223,1677.9,1677.6,5.96085]
[1744635746993,5.95914,1678.1,1677.8,5.96007]
[1744635747200,12.18209,1678.2,1677.9,6.01941224]
[1744635747497,6.223,1678.2,1677.9,5.95968]
[1744635748094,6.223,1678.5,1677.8,0.05959219]
[1744635748260,5.95788,1678.5,1678.1,5.95888]
[1744635748462,4.76765724,1679.0,1678.1,5.95888]
[1744635748463,12.94994,1678.9,1678.2,0.13267911]
[1744635748685,5.95694,1678.8,1678.4,5.95771]
[1744635748883,5.95711,1678.7,1678.4,5.95796]
[1744635749084,5.95711,1678.7,1678.4,1.191629]
[1744635749282,6.9935,1678.9,1678.2,0.0731]
[1744635749490,6.9935,1678.9,1678.3,5.95841]
[1744635749673,12.94982,1678.9,1678.6,5.95732]
[1744635750065,12.94982,1678.9,1678.2,0.0731]
[1744635750066,12.94982,1678.9,1678.2,10.79921724]
[1744635750266,12.94982,1678.9,1678.7,5.95683]
[1744635750267,6.223,1678.9,1678.7,5.95683]
[1744635750485,52.46153,1679.4,1679.1,5.95542]
[1744635750486,46.507,1679.4,1679.1,5.95542]
[1744635750684,46.507,1679.4,1679.0,5.95586]
[1744635750685,52.46164,1679.4,1679.0,5.95586]
[1744635750999,52.46164,1679.4,1679.0,11.91162]
[1744635751305,0.05,1679.4,1679.3,6.02796]
[1744635751469,0.05,1679.4,1679.3,7.10752172]
[1744635751797,0.05,1679.4,1679.3,1.07956172]
[1744635751998,0.05,1679.4,1679.3,7.03442172]
[1744635752619,0.05,1679.4,1679.3,1.07956172]
[1744635752793,5.95487,1679.3,1678.8,6.02938]
[1744635753002,5.95487,1679.3,1678.9,5.95615]
[1744635753178,5.95537,1679.2,1678.8,6.02938]
[1744635753383,6.50495,1679.3,1678.8,6.932318]
[1744635753602,5.95522,1679.2,1678.8,12.888768]
[1744635753794,5.95579,1679.1,1678.8,0.902938]
[1744635753994,11.91158,1679.1,1678.8,0.902938]
[1744635754195,5.95523,1679.2,1678.8,5.95647]
[1744635754515,6.50486,1679.3,1678.9,5.95626]
[1744635754713,5.95524,1679.2,1678.8,5.95644]
[1744635755283,0.55,1679.3,1678.6,3.0]
[1744635755590,5.95504,1679.3,1678.9,5.95626]
[1744635755914,6.82633,1679.4,1679.1,5.95556]
[1744635756115,6.221,1679.3,1679.1,5.95556]
[1744635756816,6.221,1679.3,1679.1,11.91092]
[1744635757291,0.05,1679.4,1679.3,5.95486]
[1744635757791,0.05,1679.4,1679.3,6.08749982]
[1744635758106,0.05,1679.4,1679.3,7.23223098]
[1744635759914,0.05,1679.4,1679.0,0.0731]
[1744635760211,5.95511,1679.3,1678.9,5.95603]
[1744635760425,5.95533,1679.2,1678.8,6.02964]
[1744635760586,5.95533,1679.2,1678.8,5.95654]
[1744635760587,5.95561,1679.1,1678.8,5.95654]
[1744635760978,5.95561,1679.1,1678.8,11.913]
[1744635761216,6.00469,1679.4,1679.0,5.95578]
[1744635761628,0.05,1679.4,1679.1,11.91082]
[1744635762622,0.05,1679.4,1679.2,5.95521]
[1744635762916,0.05,1679.4,1679.0,5.95582]
[1744635762917,6.00478,1679.4,1679.0,5.95582]
[1744635763117,0.8186,1679.3,1679.0,5.95582]
[1744635763316,6.77358,1679.3,1679.1,0.595582]
[1744635763613,0.8186,1679.3,1679.1,0.595582]
[1744635764127,5.95522,1679.2,1678.9,11.91242]
[1744635764318,0.05,1679.4,1679.2,6.02815]
[1744635764523,0.05,1679.4,1679.1,5.95543]
[1744635764688,0.05,1679.4,1679.0,0.0731]
[1744635764889,0.05,1679.4,1679.2,5.9549]
[1744635765099,0.05,1679.4,1679.2,6.55039]
[1744635765514,0.05,1679.4,1679.2,6.55042]
[1744635765696,0.05,1679.4,1679.2,12.50561]
[1744635766016,0.05,1679.4,1679.2,0.59549]
[1744635766222,0.05,1679.4,1679.2,6.55036]
[1744635766387,0.05,1679.4,1679.3,6.609896]
[1744635768391,0.05,1679.4,1679.3,0.655036]
[1744635768619,11.95943,1679.4,1679.0,11.98484]
[1744635768799,6.00462,1679.4,1679.1,5.95545]
[1744635769635,11.9593,1679.4,1679.1,5.95545]
[1744635769819,6.00462,1679.4,1679.1,5.95545]
[1744635770000,0.05,1679.4,1679.2,5.95508]
[1744635770199,0.05,1679.4,1679.2,1.191056]
[1744635770406,0.05,1679.4,1679.2,7.146256]
[1744635770603,0.05,1679.4,1679.2,1.191056]
[1744635770809,0.05,1679.4,1679.2,7.146226]
[1744635771218,0.05,1679.4,1679.2,13.101316]
[1744635771427,0.05,1679.4,1679.3,1.3101316]
[1744635771729,0.05,1679.4,1679.3,5.95486]
[1744635771929,0.05,1679.4,1679.2,11.91018]
[1744635772235,0.05,1679.4,1679.3,5.95486]
[1744635772532,0.7782,1679.3,1678.8,1.2644]
[1744635772823,6.73308,1679.3,1679.0,5.95564]
[1744635773550,6.73308,1679.3,1679.0,11.91143]
[1744635773825,6.73308,1679.3,1679.0,5.95564]
[1744635774032,5.95527,1679.2,1678.9,11.91237]
[1744635774235,5.95527,1679.2,1678.9,1.198547]
[1744635774403,5.95557,1679.1,1678.8,5.95661]
[1744635774912,5.95557,1679.1,1678.7,11.91379]
[1744635774913,6.75834,1679.0,1678.7,11.91379]
[1744635775221,0.55,1679.2,1678.9,5.95601]
[1744635775222,0.8022,1679.2,1678.9,5.95601]
[1744635775394,6.75745,1679.2,1678.9,5.95601]
[1744635775797,5.95594,1679.0,1678.7,5.9569]
[1744635776025,5.95594,1679.0,1678.7,7.155626]
[1744635776212,11.91204,1679.0,1678.7,7.155626]
[1744635776418,5.95594,1679.0,1678.7,7.155626]
[1744635777200,0.8127,1678.8,1678.4,0.0731]
[1744635777407,5.95765,1678.6,1678.2,5.95865]
[1744635777605,5.95765,1678.6,1678.1,0.0731]
[1744635777606,0.8127,1678.4,1678.1,5.95904]
[1744635777904,12.72909,1678.4,1678.0,5.9594]
[1744635778107,5.95841,1678.3,1678.0,11.91871]
[1744635778343,5.95841,1678.3,1678.1,1.191871]
[1744635778637,0.8127,1678.4,1678.1,1.191871]
[1744635778837,5.95864,1678.3,1677.9,11.9926]
[1744635779034,5.95884,1678.2,1677.8,5.96016]
[1744635779240,11.91788,1678.2,1677.8,11.9202]
[1744635779538,18.35288,1678.2,1677.8,11.9202]
[1744635779714,18.35277,1678.2,1677.8,11.9202]
[1744635779908,6.73787,1678.0,1677.9,1.19202]
[1744635780107,6.73787,1678.0,1677.6,5.96087]
[1744635780313,0.7784,1678.0,1677.5,6.48149777]
[1744635780636,0.7784,1678.0,1677.6,11.92152]
[1744635780637,6.73798,1678.0,1677.6,11.92152]
[1744635780804,6.73798,1678.0,1677.7,5.9605]
[1744635781827,6.73798,1678.0,1677.7,5.96037]
[1744635782029,6.73798,1678.0,1677.8,0.596037]
[1744635782225,6.435,1678.2,1677.8,0.596037]
[1744635782536,12.39389,1678.2,1677.8,6.556037]
[1744635782728,5.95922,1678.1,1677.8,6.556037]
[1744635782909,12.39389,1678.2,1677.8,12.516097]
[1744635783112,6.435,1678.2,1677.9,1.31120789]
[1744635783311,6.435,1678.2,1677.8,0.596037]
[1744635783312,12.39392,1678.2,1677.5,0.0731]
[1744635783511,6.435,1678.2,1677.9,5.95962]
[1744635783720,6.435,1678.2,1678.0,5.95945]
[1744635784239,6.435,1678.2,1678.0,11.91878]
[1744635784444,6.435,1678.2,1678.1,5.95912]
[1744635784803,6.435,1678.2,1677.9,5.95956]
[1744635785008,12.39387,1678.2,1678.0,0.595956]
[1744635785225,12.39387,1678.2,1677.9,5.95978]
[1744635785446,6.435,1678.2,1677.8,0.05959467]
[1744635785629,6.435,1678.2,1678.0,5.95922]
[1744635785819,6.435,1678.2,1677.9,11.91947]
[1744635786015,12.39378,1678.2,1677.9,5.95972]
[1744635786220,11.91787,1678.2,1677.9,1.191981]
[1744635786420,5.95912,1678.1,1677.9,1.191981]
[1744635786622,5.95878,1678.2,1677.9,7.151731]
[1744635787435,13.15079,1678.3,1677.9,13.111451]
[1744635787742,0.55,1678.2,1677.9,7.151701]
[1744635787946,6.50877,1678.2,1677.8,5.96011]
[1744635788345,0.8104,1678.1,1677.5,0.0731]
[1744635788508,0.8104,1678.1,1677.4,12.12152]
[1744635788509,0.8104,1677.9,1677.4,5.96152]
[1744635788713,0.55,1677.8,1677.6,5.96078]
[1744635789133,6.51019,1677.8,1677.5,5.96115]
[1744635789336,7.2474,1677.9,1677.7,5.96054]
[1744635789611,0.8104,1678.1,1677.7,5.96054]
[1744635789827,0.8104,1678.1,1677.8,5.95989]
[1744635790023,6.76961,1678.1,1677.6,0.596115]
[1744635790214,0.8104,1678.1,1677.4,5.21099378]
[1744635790434,12.39583,1678.2,1678.0,5.95937]
[1744635790435,6.437,1678.2,1678.0,5.95937]
[1744635790644,6.437,1678.2,1677.9,5.9596]
[1744635790645,12.39585,1678.2,1677.8,6.0332]
[1744635790816,6.437,1678.2,1677.7,5.96054]
[1744635791245,6.437,1678.2,1678.0,5.95937]
[1744635792133,6.437,1678.2,1677.9,5.95958]
[1744635792319,0.55,1678.1,1677.9,1.19197]
[1744635792629,6.50924,1678.1,1677.9,1.19197]
[1744635792840,5.95999,1677.9,1677.6,5.96078]
[1744635793023,0.833,1678.1,1677.6,5.96078]
[1744635793024,12.46933,1678.0,1677.6,5.96078]
[1744635793225,12.46933,1678.0,1677.6,11.92157]
[1744635793450,0.55,1678.0,1677.7,5.96039]
[1744635793748,0.55,1678.0,1677.8,5.96014]
[1744635794316,0.55,1678.0,1677.8,1.192053]
[1744635795251,0.55,1678.0,1677.8,13.112283]
[1744635795455,6.72866,1678.3,1678.0,5.95916]
[1744635795656,6.72866,1678.3,1677.9,5.95969]
[1744635795657,0.55,1678.2,1677.9,5.95969]
[1744635795845,5.9593,1678.1,1677.7,5.9604]
[1744635796044,5.9593,1678.1,1677.7,11.92082]
[1744635796245,5.9593,1678.1,1677.8,5.96016]
[1744635796441,6.50882,1678.2,1677.8,11.9202]
[1744635796818,12.46775,1678.2,1677.9,5.95981]
[1744635797025,1.3349,1678.0,1677.6,5.9607]
[1744635797530,7.29454,1678.0,1677.6,5.9607]
[1744635797739,5.95985,1677.9,1677.6,5.9607]
[1744635798355,5.96042,1677.8,1677.4,5.96146]
[1744635798654,5.96042,1677.8,1677.1,6.437]
[1744635798655,0.8197,1677.4,1677.1,11.92499]
[1744635798956,0.8197,1677.4,1677.1,13.117489]
[1744635799722,6.78134,1677.4,1677.1,1.192499]
[1744635799924,6.51217,1677.3,1676.9,5.96331]
[1744635800159,1.3277,1677.1,1676.8,5.96356]
[1744635800323,11.79765724,1677.3,1676.8,5.96356]
[1744635800324,7.2577,1677.3,1676.8,5.96358]
[1744635800632,1.3765,1677.5,1677.3,5.96194]
[1744635800838,7.8565,1677.5,1677.3,5.9618]
[1744635801041,7.8565,1677.5,1677.2,5.9623]
[1744635801345,5.96198,1677.3,1677.0,5.96295]
[1744635801547,0.55,1677.2,1676.7,6.03716]
[1744635801760,0.55,1677.4,1677.1,5.96256]
[1744635802060,0.55,1677.4,1677.2,5.96219]
[1744635802449,0.55,1677.4,1677.1,11.9253]
[1744635802765,6.51161,1677.4,1677.1,7.15518]
[1744635803057,0.55,1677.2,1677.0,5.96292]
[1744635803265,0.55,1677.3,1677.0,5.96292]
[1744635803430,0.55,1677.2,1676.9,11.92662]
[1744635803763,0.55,1677.2,1677.0,5.96291]
[1744635803960,0.55,1677.2,1677.0,7.155531]
[1744635804258,0.55,1677.2,1677.1,5.96267]
[1744635804953,5.96174,1677.4,1677.1,5.96267]
[1744635805356,7.8565,1677.5,1677.0,0.05962733]
[1744635805559,7.3065,1677.5,1677.1,5.96267]
[1744635805739,7.3065,1677.5,1677.2,0.0596163]
[1744635805931,7.3065,1677.5,1677.4,5.9616]
[1744635806531,6.48,1677.5,1677.4,5.9616]
[1744635806761,6.48,1677.5,1677.4,7.153945]
[1744635807263,47.8056,1677.7,1677.6,5.96089]
[1744635807264,0.7956,1677.7,1677.6,5.96089]
[1744635807443,6.481,1677.9,1677.6,5.96089]
[1744635807640,6.481,1677.9,1677.4,1.192345]
[1744635807843,6.71085,1677.8,1677.4,5.9615]
[1744635808028,6.71085,1677.8,1677.4,11.92297]
[1744635808233,0.7504,1677.8,1677.5,5.96121]
[1744635808667,0.7504,1677.8,1677.6,5.96078]
[1744635809136,6.481,1677.9,1677.6,5.96079]
[1744635809331,6.481,1677.9,1677.7,6.556539]
[1744635809936,6.481,1677.9,1677.8,5.96018]
[1744635810750,7.3103,1678.2,1677.9,5.95975]
[1744635810962,7.3103,1678.2,1678.0,5.95932]
[1744635811177,7.3103,1678.2,1678.1,5.95912]
[1744635811336,6.481,1678.2,1678.1,5.95912]
[1744635811786,6.481,1678.2,1678.1,7.150964]
[1744635812278,6.481,1678.2,1678.1,1.191844]
[1744635812453,6.71688,1678.0,1677.7,5.96043]
[1744635812660,6.71688,1678.0,1677.7,11.92087]
[1744635812863,0.7574,1678.0,1677.7,11.92087]
[1744635813066,0.7574,1678.0,1677.7,5.96043]
[1744635813269,6.51002,1677.9,1677.6,3.0]
[1744635813450,0.55,1677.9,1677.7,5.96026]
[1744635813772,0.7574,1678.0,1677.8,5.96018]
[1744635814471,0.7574,1678.0,1677.7,5.96026]
[1744635814673,5.96033,1677.8,1677.4,5.96132]
[1744635814975,5.96033,1677.8,1677.5,5.96119]
[1744635815169,5.96033,1677.8,1677.5,7.153401]
[1744635815345,12.44033,1677.8,1677.5,13.114541]
[1744635815546,6.48,1677.8,1677.6,5.96081]
[1744635815875,18.4007,1677.8,1677.5,1.192251]
[1744635816074,12.44021,1677.8,1677.4,11.92305]
[1744635816262,6.48,1677.8,1677.5,5.96121]
[1744635816459,6.48,1677.8,1677.5,11.92233]
[1744635816784,12.44026,1677.8,1677.5,5.96112]
[1744635817071,12.44026,1677.8,1677.2,5.96214]
[1744635817072,0.8078,1677.6,1677.2,5.96214]
[1744635817379,6.51174,1677.4,1677.2,0.603524]
[1744635817561,6.51174,1677.4,1677.0,5.96302]
[1744635817562,6.51174,1677.4,1677.0,11.92593]
[1744635817874,12.47366,1677.4,1677.0,11.92593]
[1744635818180,12.47366,1677.4,1676.5,12.44546]
[1744635818181,5.96293,1677.1,1676.7,5.96387]
[1744635818549,5.96293,1677.1,1676.8,11.92707]
[1744635818753,5.96293,1677.1,1676.8,7.1621605]
[1744635819279,11.92583,1677.1,1676.8,1.1986705]
[1744635819478,5.9629,1677.1,1676.7,11.928]
[1744635819778,6.51304,1677.0,1676.7,5.96398]
[1744635819988,7.33624,1677.0,1676.7,5.96398]
[1744635820283,13.75725,1677.0,1676.7,5.96395]
[1744635820977,13.75725,1677.0,1676.6,5.96436]
[1744635821279,13.75725,1677.0,1676.4,5.96501]
[1744635821280,11.92802,1676.8,1676.4,5.96501]
[1744635821481,9.169925,1677.0,1676.6,5.96411]
[1744635821482,7.7942,1677.0,1676.6,5.96411]
[1744635821778,6.51339,1676.9,1676.6,5.96432]
[1744635821978,0.55,1676.9,1676.7,5.96409]
[1744635822151,13.2073,1677.0,1676.7,7.00762896]
[1744635822351,11.2073,1677.0,1676.7,12.97158896]
[1744635822676,5.2442,1677.0,1676.7,12.97158896]
[1744635822877,0.55,1677.0,1676.7,12.97158896]
[1744635823046,0.55,1677.0,1676.7,7.00753896]
[1744635823247,0.55,1677.0,1676.8,5.96356]
[1744635823442,0.55,1677.0,1676.8,7.2606769]
[1744635824062,0.55,1677.0,1676.8,11.9272]